Cogmind - Beta 17 @@@ ROGUE MODE // 2026.06.26 @ 15:18:47 Player: Brananarchy Result: Destroyed by Y-45 Defender with Heavy Assault Rifle Performance ------------- Evolutions (2) 1000 Regions Visited (3) 600 Robots Destroyed (42) 210 Value Destroyed (1180) 1180 Prototype IDs (0) 0 Alien Tech Used (0) 0 Bonus (0) 0 TOTAL SCORE: 2990 Bonus ------- None Cogmind --------- Core Integrity 0/550 Matter 300/300 Energy 96/100 System Corruption 0% Temperature Cool (18) Movement Walking (120) Location -8/Materials Parts ------- > --- POWER (1) -------- (None) > --- PROPULSION (4) --- Carbon-fiber Leg > --- UTILITY (3) ------ Structural Scanner > --- WEAPON (3) ------- Light Assault Rifle > --- INVENTORY (5) ---- Huge Storage Unit Trap Scanner Peak State ------------ > --- POWER ------------ Improved Ion Engine > --- PROPULSION ------- Aluminum Leg Aluminum Leg Aluminum Leg > --- UTILITY ---------- High-capacity Matter Pod Structural Scanner Light Armor Plating > --- WEAPON ----------- Light Assault Rifle Light Assault Rifle Katana > --- INVENTORY -------- Huge Storage Unit Trap Scanner Light Armor Plating [Rating: 13] Favorites ----------- Power Ion Engine Engine Ion Engine Propulsion Aluminum Leg Leg Aluminum Leg Utility High-capacity Matter Pod Device Structural Scanner Storage High-capacity Matter Pod Protection Light Armor Plating Weapon Light Assault Rifle Ballistic Gun Light Assault Rifle Slashing Weapon Katana Build | -11 -10 -9 -8 ------- Run | Yrd Mat Mat Mat Slots Evolved 4 | . . 2 2 Power . | . . . . Propulsion 2 | . . 2 . Utility 1 | . . . 1 Weapon 1 | . . . 1 Parts Attached 35 | 4 5 12 14 Power 5 | . 2 1 2 Engine 5 | . 2 1 2 Core . | . . . . Reactor . | . . . . Propulsion 13 | 2 . 7 4 Treads . | . . . . Leg 13 | 2 . 7 4 Wheel . | . . . . Hover . | . . . . Flight . | . . . . Utility 7 | . 3 . 4 Device 2 | . . . 2 Storage 3 | . 3 . . Processor . | . . . . Hackware . | . . . . Protection 2 | . . . 2 Artifact . | . . . . Weapon 10 | 2 . 4 4 Energy Gun . | . . . . Energy Cannon . | . . . . Ballistic Gun 9 | 2 . 4 3 Ballistic Cannon . | . . . . Launcher . | . . . . Special Weapon . | . . . . Impact Weapon . | . . . . Slashing Weapon 1 | . . . 1 Piercing Weapon . | . . . . Special Melee Weapon . | . . . . Unidentified Prototypes . | . . . . Parts Lost 31 | . . 11 20 Power 5 | . . 2 3 Propulsion 12 | . . 7 5 Utility 5 | . . . 5 Weapon 9 | . . 2 7 Highest Loss Streak 10 | . . 3 10 To Critical Strikes 1 | . . 1 . Average Backups 6 | 3 6 8 3 Power 1 | 1 1 1 . Propulsion 1 | . 2 1 . Utility 2 | . . 3 3 Weapon 1 | . 1 2 . Tool/Special . | . . . . Unused Backups 3 | . . 2 1 Power . | . . . . Propulsion 1 | . . 1 . Utility 1 | . . . 1 Weapon 1 | . . 1 . Tool/Special . | . . . . Average Slot Usage (%) 85 | . 87 93 72 Engine 9 | . 10 10 8 Leg 29 | . 28 37 17 Device 2 | . . . 8 Storage 18 | . 19 22 13 Protection 1 | . . . 3 Ballistic Gun 20 | . 28 21 14 Slashing Weapon 2 | . . . 6 Peak Build Rating 13 | 4 7 11 13 Average Rating 9 | 2 6 9 10 On Entrance 4 | . 4 7 8 Avg Prop Armor Cover (%) . | . . . . Naked Turns . | . . . . Heaviest Build 94 | 3 92 94 24 Greatest Support 40 | 20 20 40 30 Greatest Overweight (x) 6 | . 4 3 6 Average Overweight (x) . | . . 1 . Largest Inventory Capacity 25 | 5 25 25 8 Average Capacity 13 | 5 8 21 6 Most Carried 13 | 5 8 13 6 Average Carried 6 | 3 6 8 3 Final Capacity 8 | 5 8 8 5 Final Carried 8 | 4 8 6 2 Class Distribution -------------------- 55% | Scavenger-Mutant 38% | Mutant 6% | Scavenger-Skirmisher Dominant Class ---------------- Mutant | -10/Materials Scavenger-Mutant | -9/Materials Scavenger-Mutant | -8/Materials Resources | -11 -10 -9 -8 ----------- Run | Yrd Mat Mat Mat Matter Collected 1354 | 227 175 754 198 Remotely . | . . . . Salvage Created 1847 | . 219 1197 431 Parts 101 | . 13 60 28 Haulers Intercepted . | . . . . Recyclers Shooed 2 | . . 1 1 Parts Field Recycled . | . . . . Retrieved Matter . | . . . . Parts Self-Destructed . | . . . . Prevented . | . . . . Parts Restored . | . . . . Kills | -11 -10 -9 -8 ------- Run | Yrd Mat Mat Mat Combat Hostiles Destroyed 34 | . 5 19 10 Melee 4 | . . . 4 Guns 30 | . 5 19 6 Classes Destroyed 9 | . 1 6 2 Worker 1 | . . . 1 Builder 1 | . . 1 . Recycler 5 | . . 5 . Watcher 1 | . . 1 . Swarmer 8 | . . 4 4 Grunt 19 | . 5 11 3 Brawler 1 | . . 1 . Duelist 1 | . . . 1 Sentry 5 | . . 3 2 Best Kill Streak 6 | . 3 6 4 Combat Bots Only 5 | . 3 5 4 Max Kills in Single Turn 2 | . 1 2 1 Gunslinging 1 | . . 1 . Exploded . | . . . . Melee 1 | . . . 1 Uniques/NPCs Destroyed . | . . . . Combat | -11 -10 -9 -8 -------- Run | Yrd Mat Mat Mat Hostile Shots Fired 347 | . 23 135 189 Missed 98 | . 8 38 52 Hits 249 | . 15 97 137 Melee 9 | . . 2 7 Projectile 240 | . 15 95 130 Critical Strikes 10 | . . 5 5 Damage Taken 3382 | . 202 1193 1987 Core 851 | . 13 277 561 Absorbed by Shields . | . . . . Core Remaining (%) 74 | 100 94 30 . Volleys Fired 143 | . 22 87 34 Largest 3 | . 2 2 3 Hottest 66 | . 40 46 66 Shots Fired 286 | . 44 175 67 Gun 286 | . 44 175 67 Cannon . | . . . . Launcher . | . . . . Special . | . . . . Kinetic 286 | . 44 175 67 Thermal . | . . . . Explosive . | . . . . Electromagnetic . | . . . . Robot Hit Streak 20 | . 9 20 6 Robot Miss Streak 10 | . 10 3 2 Penetration Max . | . . . . Secondary Targets 6 | . 2 3 1 Max Gunslinging Chain 1 | . 1 1 1 Shots Hit Robots 198 | . 23 120 55 Core Hits 80 | . 14 43 23 Critical Kills . | . . . . Critical Parts Destroyed 2 | . 1 1 . Critical Strikes 2 | . 1 1 . Destroy 2 | . 1 1 . Melee Attacks 15 | . . . 15 Impact . | . . . . Slashing 15 | . . . 15 Piercing . | . . . . Sneak Attacks 2 | . . . 2 Combat Hostiles . | . . . . Follow-up Attacks . | . . . . Damage Inflicted 2593 | . 229 1569 795 Guns 2279 | . 229 1569 481 Cannons . | . . . . Explosions . | . . . . Melee 314 | . . . 314 Ramming . | . . . . Kinetic 2279 | . 229 1569 481 Thermal . | . . . . Explosive . | . . . . Electromagnetic . | . . . . Impact . | . . . . Slashing 314 | . . . 314 Piercing . | . . . . Highest Corruption 10 | . . 10 . Average Corruption 9 | . . 9 . Corruption Purged . | . . . . Corruption Blocked . | . . . . Effects 1 | . . 1 . Misfires 1 | . . 1 . Overload Shots . | . . . . Overflow Damage 39 | . . . 39 Projectiles . | . . . . Explosions . | . . . . Melee 39 | . . . 39 Knockbacks . | . . . . Impact . | . . . . Kinetic . | . . . . Secondary . | . . . . Self-Inflicted Damage . | . . . . Shots . | . . . . Rammed 1 | . . . 1 Targets Rammed 1 | . . . 1 Kicked . | . . . . Crushed . | . . . . Highest Temperature 106 | . 15 24 106 Average Temperature 21 | . 6 5 37 Received Heat Transfer 1398 | . 111 585 702 Siege Activations . | . . . . Martial Activations . | . . . . Shielding Activations . | . . . . Robots Disrupted . | . . . . Combat Hostiles . | . . . . Robots Corrupted . | . . . . Combat Hostiles . | . . . . Parts Fried . | . . . . Impact Corruptions . | . . . . Robots Melted . | . . . . Combat Hostiles . | . . . . Parts Melted . | . . . . Heat Transferred . | . . . . Parts Sabotaged . | . . . . Parts Stolen . | . . . . Parts Stripped . | . . . . Power Chain Reactions . | . . . . Alert | -11 -10 -9 -8 ------- Run | Yrd Mat Mat Mat Maximum Alert Level 1 | . . 1 . Low Security (%) 95 | 100 100 90 100 Level 1 4 | . . 9 . Level 2 . | . . . . Level 3 . | . . . . Level 4 . | . . . . Level 5 . | . . . . High Security . | . . . . Max Security . | . . . . Peak Influence 213 | . 60 213 86 Initial 86 | . . 12 86 Average 83 | . 18 142 49 Influence Increases 999 | . 120 579 300 Destroy 0b10 Robot/C 680 | . 100 380 200 Destroy 0b10 Robot/NC 40 | . . 35 5 Destroy Leader 172 | . 20 102 50 Destroy Structure 2 | . . 2 . Lose Combat Pursuer 105 | . . 60 45 Influence Decreases 993 | . 90 404 499 Entered New Map 137 | . . 18 119 Time Decay 580 | . 90 276 214 Lost Part 276 | . . 110 166 Squads Dispatched 6 | . 1 3 2 Investigation . | . . . . Extermination . | . . . . Reinforcement 5 | . 1 3 1 Assault . | . . . . Garrison 1 | . . . 1 Intercept . | . . . . Searches Triggered . | . . . . Construction Impeded . | . . . . Haulers Reinforced . | . . . . Active Scanning Responses . | . . . . Cargo Convoy Interrupts . | . . . . Stealth | -11 -10 -9 -8 --------- Run | Yrd Mat Mat Mat Distress Signals 4 | . . 3 1 Communications Jammed . | . . . . Distress Signals . | . . . . Times Spotted 52 | . 8 27 17 Peak Tracking Total 5 | . 2 4 5 Tactical Retreats 5 | . . 3 2 Traps | -11 -10 -9 -8 ------- Run | Yrd Mat Mat Mat Traps Triggered 1 | . . 1 . Indirectly . | . . . . Trap Hack Attempts . | . . . . Triggered . | . . . . Disarmed . | . . . . Reprogrammed . | . . . . Reused . | . . . . Traps Extracted . | . . . . Installed . | . . . . Triggered . | . . . . Machines | -11 -10 -9 -8 ---------- Run | Yrd Mat Mat Mat Machines Disabled . | . . . . Max in Single Turn . | . . . . Machines Repaired . | . . . . Machines Dismantled . | . . . . Machines Sabotaged . | . . . . Overloaded Fab Kills . | . . . . Hacking | -11 -10 -9 -8 --------- Run | Yrd Mat Mat Mat Machines Accessed . | . . . . Terminals . | . . . . Fabricators . | . . . . Repair Stations . | . . . . Recycling Units . | . . . . Scanalyzers . | . . . . Garrison Access . | . . . . Total Hacks . | . . . . Successful . | . . . . Failed . | . . . . Catastrophic . | . . . . Database Lockouts . | . . . . Manual . | . . . . Terminals . | . . . . Fabricators . | . . . . Repair Stations . | . . . . Recycling Units . | . . . . Scanalyzers . | . . . . Garrison Access . | . . . . Terminal Hacks . | . . . . Fabricator Hacks . | . . . . Repair Station Hacks . | . . . . Recycling Unit Hacks . | . . . . Scanalyzer . | . . . . Garrison Access Hacks . | . . . . Unauthorized Hacks . | . . . . Terminals . | . . . . Fabricators . | . . . . Repair Stations . | . . . . Recycling Units . | . . . . Scanalyzers . | . . . . Garrison Access . | . . . . Data Cores Recovered . | . . . . Used . | . . . . Hacking Detections . | . . . . Full Trace Events . | . . . . Feedback Events . | . . . . Feedback Blocked . | . . . . Robot Schematics Acquired . | . . . . Robots Built . | . . . . Authchips . | . . . . Time . | . . . . Total Robot Build Rating . | . . . . Part Schematics Acquired . | . . . . Parts Built . | . . . . Authchips . | . . . . Time . | . . . . Total Part Build Rating . | . . . . Part Studies Acquired . | . . . . Parts Repaired . | . . . . Time . | . . . . Parts Recycled . | . . . . Recycled Matter . | . . . . Retrieved Matter . | . . . . Retrieved Components . | . . . . Parts Scanalyzed . | . . . . Part Schematics Acquired . | . . . . Parts Damaged . | . . . . Bothacking | -11 -10 -9 -8 ------------ Run | Yrd Mat Mat Mat Used RIF Installer . | . . . . Robots Hacked . | . . . . Non-combat . | . . . . Combat . | . . . . Robot Hacks Applied . | . . . . Relay Couplers Released . | . . . . Fabnet Peak Effective % . | . . . . Robots Rewired . | . . . . Allies Hacked . | . . . . Hacks Repelled . | . . . . Allies | -11 -10 -9 -8 -------- Run | Yrd Mat Mat Mat Total Allies . | . . . . Largest Group . | . . . . Highest-Rated Group . | . . . . Highest-Rated Ally . | . . . . Total Orders . | . . . . Ally Attacks . | . . . . Total Damage . | . . . . Kills . | . . . . Allies Corrupted . | . . . . Allies Melted . | . . . . Intel | -11 -10 -9 -8 ------- Run | Yrd Mat Mat Mat Active Infowar (turns) 430 | . . . 430 Terrain 137 | . . . 137 Structural 293 | . . . 293 Robot Analysis Total . | . . . . Derelict Logs Recovered . | . . . . Drone Launches . | . . . . Drone Recoveries . | . . . . Exploration | -11 -10 -9 -8 ------------- Run | Yrd Mat Mat Mat Turns Passed 1440 | 40 296 648 456 Spaces Moved 587 | 32 171 166 218 Core 25 | 14 . . 11 Treads . | . . . . Legs 562 | 18 171 166 207 Wheels . | . . . . Hover . | . . . . Flight . | . . . . Fastest Speed 50 | 50 120 120 120 Average Speed 155 | 89 128 217 138 Slowest Speed 400 | 120 400 330 350 Overloaded Moves . | . . . . Propulsion Burnouts . | . . . . Robots Hopped . | . . . . Potential Cave-ins . | . . . . Cave-ins Triggered . | . . . . Exploration Rate (%) 24 | 4 41 29 24 Regions Visited 3 Branch Regions . Pre-discovered Areas . | . . . . Known Exits Taken . | . . . . Unknown Exits Taken 3 | 1 1 1 . Scrap Searched . | . . . . Spaces Dug . | . . . . Terrain Destroyed . | . . . . Melee . | . . . . Projectile . | . . . . AOE . | . . . . Terrain Rammed . | . . . . Walls Destroyed . | . . . . Machines Disabled . | . . . . Actions | -11 -10 -9 -8 --------- Run | Yrd Mat Mat Mat Total 834 | 43 208 286 297 Wait . | . . . . Move 584 | 31 170 165 218 Hop . | . . . . Pick Up 41 | 8 8 13 12 Fast Attach . | . . . . Attach 36 | 4 3 13 16 Detach . | . . . . Swap 9 | . 3 5 1 Drop 5 | . 2 3 . Fire 143 | . 22 87 34 Melee 15 | . . . 15 Ram 1 | . . . 1 Kick . | . . . . Crush . | . . . . Escape Stasis . | . . . . Rewire . | . . . . Trap . | . . . . Miscellaneous . | . . . . Route ------- -11/Scrapyard -10/Materials -9/Materials -8/Materials History --------- Turn | Location | Event 21 | -11/Scrapyard | Discovered new exit (range 15) 41 | -11/Scrapyard | Entered Materials 307 | -10/Materials | Build established: Mutant 330 | -10/Materials | Discovered new exit (range 7) 337 | -10/Materials | Entered another Materials area 337 | -9/Materials | Evolved 2 slots: Propulsion x2 774 | -9/Materials | Lost 3 parts (1p2n) 842 | -9/Materials | Core integrity fell below 50% 928 | -9/Materials | Discovered new exit (range 16) 962 | -9/Materials | System corruption reached 10% 985 | -9/Materials | Entered another Materials area 985 | -8/Materials | Evolved 2 slots: Utility x1, Weapon x1 992 | -8/Materials | Lost 3 parts (1p1n1w) 1113 | -8/Materials | Core integrity fell below 50% 1153 | -8/Materials | Lost 10 parts (2p2n1u5w) 1370 | -8/Materials | Garrison activated, responded to threat 1386 | -8/Materials | Core integrity fell below 20% 1417 | -8/Materials | Build established: Scavenger-Mutant 1441 | -8/Materials | Destroyed by Y-45 Defender with Heavy Assault Rifle Last Messages --------------- 01421_ G-50 Soldier destroyed. 01421_ Switching to secondary target: G-47 Trooper. 01421_ K-01 Serf collects debris. 01422_ ALERT: Hostiles spotted, dispatching reinforcements to Terminal M012. 01424_ K-01 Serf collects debris. 01426_ Lgt. Armor Plating destroyed. 01429_ Sneak attack on K-01 Serf. 01429_ K-01 Serf destroyed. 01434_ Imp. Ion Engine destroyed. 01435_ R-06 Scavenger collects Lgt. Ion Engine. 01435_ Critical hit (Burn: +37). 01435_ Lgt. Assault Rifle destroyed. 01435_ Acquired Carbon-fiber Leg. 01437_ Acquired 10 matter. 01437_ Katana destroyed. 01438_ Critical hit (Burn: +37). 01439_ Acquired 1 matter. 01441_ Hcp. Matter Pod destroyed. Map ----- +----------------------------------------------------+ | ???????????## # ????????????????????????? | | ???????????## """ # ????????????????????????? | | ??????####### """ # ????????????????????????? | | ??????####### """ ##########????????????????? | | ?????? ##########????????????????? | | ????????????? # """ ##????????????????? | | ?????????????????## # "Y" ##????????????????? | | ?????????????????## # " " ##????????????????? | | ?????????????????## + ##????????????????? | | ?????????????????##### # ! % # ????????????????? | | ?????????????????##### ######### " ??????????? | | ???????????########### "T ????????????? | | ???????????###########+######### ????????? | | ???????????## # ### ????????????????? | | ???????????## """" # ##??????????????????? | | ???????????## """" + ##??????????????????? | | ???????????## """" # ##??????????????????? | | ???????????## ###+########??????????????????? | | ???????????## [ # # #??????????????????? | | ???????????######+## # ??????????????????????? | | ???????????##### # ??????????????????????? | | ??????????????## # ??????? ##????????????? | | ??????????????## ! # ??????? ##????????????? | | ??????????????### ######### #####?????????? | | ????????######### gg######### #####?????????? | | ????????######### !! r[@= Y [??????? | | ????????## = ]# !! % ####????????????? | | ????????##! # k ## ????????????? | | ????????## + % ##??????? ??????? | | ????????## """ #+#+#########+## ##??????? ??????? | | ????????## """ # ## # ##??????? ####### | | ????????## """ # """ ## """#%######### ####### | | ????????#########! """ ## """#*######### # T | | ????????######### """ ## [ """#%* ## # | | ???????????????## ## # ## # | | ???????????????## "T" /## # ## # | | ???????????????################# ## # | | ???????????????################# ## # """ | | ???????????????????????######### ## # """ | | ???????????????????????######### ## # """ | | ???????????????????????## / ## # | | ???????????????????????## """ # ## #####+# | | ???????????????????????# "R ? # ## #### | | ???????????????????????## "??? # | | ???????????????????????## ???? ################ | | ???????????????????????## ???? ################### | | ???????????????????????????????????????????## [% | | ???????????????????????????????????????????##= % | | ???????????????????????????????????????????##%=! | | ??????????????????????????????????????????### " " | +----------------------------------------------------+ Best States ------------- Heat Dissipation 31 Energy Generation 14 Energy Capacity 275 Matter Stores 500 Matter Capacity 500 Sight Range 16 Terrain Scan Range 14 Terrain Scan Density 10 Armor Coverage 150 Evasion (%) 55 Item Schematics ----------------- None Robot Schematics ------------------ None Fabricated ------------ Nothing Repaired ---------- Nothing Studied --------- None Alien Tech Used ----------------- None Achievements -------------- System Compromised Challenges ------------ None Game ------ Seed ArmoredLargeShearcannon Manual? 0 Play Time 00:22:05 Cumulative 4.9 hours Start 2026.06.26 @ 14:56:38 End 2026.06.26 @ 15:18:47 Sessions 1 Manual Loads 0 Difficulty Rogue Special Mode None Game No. 12 Rogue 12 Adventurer 0 Explorer 0 Win Type - Total 0 Types 0/0/0/0/0/0/0/0/0/0 Lore% 6 Gallery% 7 Achievement% 10 Wizard Run 0 Options --------- Layout 1 ASCII 0 Keyboard 0 Movement Mouse Keybinds 0 Fullscreen 1 Font 32/SmallcapsGlow Map View 50x35 Zoom Use 0% Tactical HUD 1 Map Filters NONE Filters NONE Steam 1 RUN: 7f3680fa-61b4-48a1-831e-a789d7a770d7